[Event "World Prestigious University 2019"]
[Site "Tianjin"]
[Date "2019.11.26"]
[Round "2.10"]
[White "Bibby, Simon"]
[Black "Theodorou, Nikolas"]
[Result "0-1"]
[WhiteElo "2167"]
[BlackElo "2555"]
[PlyCount "76"]
[EventDate "2019.11.26"]
[EventType "team-tourn"]
[EventCountry "CHN"]
[TimeControl "1500+10"]
[WhiteClock "0:00:35"]
[BlackClock "0:00:24"]

1. d4 {[%emt 0:00:00]} Nf6 {[%emt 0:00:00]} 2. Bg5 {[%emt 0:00:00]} d5 {[%emt 0:00:02]} 3. Bxf6 {[%emt 0:00:00]} exf6 {[%emt 0:00:06]} 4. e3 {[%emt 0:00:02]} Bd6 {[%emt 0:00:06]} 5. c4 {[%emt 0:00:03]} dxc4 {[%emt 0:00:02]} 6. Bxc4 {[%emt 0:00:01]} a6 {[%emt 0:00:08]} 7. Nc3 {[%emt 0:00:04]} O-O {[%emt 0:00:18]} 8. Qc2 {[%emt 0:00:29]} f5 {[%emt 0:00:27]} 9. Nf3 {[%emt 0:00:05]} Nd7 {[%emt 0:00:13]} 10. O-O-O {[%emt 0:01:11]} Nf6 {[%emt 0:00:14]} 11. h3 {[%emt 0:00:26]} b5 {[%emt 0:00:44]} 12. Bb3 {[%emt 0:00:30]} g6 {[%emt 0:03:49]} 13. g4 {[%emt 0:02:31]} b4 {[%emt 0:01:08]} 14. Na4 {[%emt 0:03:05]} Ne4 {[%emt 0:01:47]} 15. Nc5 {[%emt 0:02:13]} Bxc5 {[%emt 0:02:54]} 16. dxc5 {[%emt 0:00:01]} Qe7 {[%emt 0:00:02]} 17. Bd5 {[%emt 0:01:55]} c6 {[%emt 0:01:49]} 18. Bxc6 {[%emt 0:01:33]} Ra7 {[%emt 0:01:47]} 19. gxf5 {[%emt 0:02:32]} Nxf2 {[%emt 0:04:15]} 20. Qxf2 {[%emt 0:04:00]} Qxc5+ {[%emt 0:00:03]} 21. Kb1 {[%emt 0:00:32]} Qxc6 {[%emt 0:01:01]} 22. Nd4 {[%emt 0:00:25]} Qe4+ {[%emt 0:00:19]} 23. Ka1 {[%emt 0:00:01]} Re8 {[%emt 0:00:47]} 24. f6 {[%emt 0:00:31]} Rc7 {[%emt 0:00:51]} 25. h4 {[%emt 0:00:11]} Bg4 {[%emt 0:00:12]} 26. Rde1 {[%emt 0:01:19]} h5 {[%emt 0:00:22]} 27. Qg3 {[%emt 0:00:14]} Qe5 {[%emt 0:01:24]} 28. Qf2 {[%emt 0:00:16]} a5 {[%emt 0:00:23]} 29. Rhf1 {[%emt 0:00:40]} a4 {[%emt 0:00:16]} 30. Qd2 {[%emt 0:01:21]} Rec8 {[%emt 0:00:17]} 31. Qd3 {[%emt 0:01:09]} a3 {[%emt 0:01:20]} 32. bxa3 {[%emt 0:00:35]} bxa3 {[%emt 0:00:10]} 33. Qxa3 {[%emt 0:00:05]} Qh2 {[%emt 0:01:35]} 34. Rc1 {[%emt 0:01:25]} Qxh4 {[%emt 0:00:31]} 35. Rxc7 {[%emt 0:00:04]} Rxc7 {[%emt 0:00:01]} 36. Qd6 {[%emt 0:00:12]} Rc8 {[%emt 0:00:11]} 37. Nc6 {[%emt 0:00:38]} Kh7 {[%emt 0:00:45]} 38. Nd8 {[%emt 0:00:37]} Qh3 {[%emt 0:00:26]} 0-1

[Event "World Prestigious University 2019"]
[Site "Tianjin"]
[Date "2019.11.26"]
[Round "2.11"]
[White "Chandra, Akshat"]
[Black "Hirao, Satoshi"]
[Result "1-0"]
[WhiteElo "2524"]
[BlackElo "1958"]
[PlyCount "55"]
[EventDate "2019.11.26"]
[EventType "team-tourn"]
[EventCountry "CHN"]
[TimeControl "1500+10"]
[WhiteClock "0:01:24"]
[BlackClock "0:11:01"]

1. e4 {[%emt 0:00:00]} e5 {[%emt 0:00:00]} 2. Nf3 {[%emt 0:00:00]} Nc6 {[%emt 0:00:00]} 3. Bb5 {[%emt 0:00:00]} Nf6 {[%emt 0:00:02]} 4. d3 {[%emt 0:00:00]} d6 {[%emt 0:00:13]} 5. O-O {[%emt 0:00:02]} Be7 {[%emt 0:00:19]} 6. c3 {[%emt 0:00:03]} O-O {[%emt 0:00:09]} 7. Re1 {[%emt 0:00:02]} a6 {[%emt 0:00:27]} 8. Ba4 {[%emt 0:00:02]} b5 {[%emt 0:00:11]} 9. Bc2 {[%emt 0:00:02]} Re8 {[%emt 0:00:02]} 10. Nbd2 {[%emt 0:00:07]} Bf8 {[%emt 0:00:04]} 11. Nf1 {[%emt 0:00:18]} h6 {[%emt 0:00:11]} 12. Ng3 {[%emt 0:00:15]} d5 {[%emt 0:00:33]} 13. exd5 {[%emt 0:01:23]} Nxd5 {[%emt 0:00:58]} 14. Bd2 {[%emt 0:03:20]} Bc5 {[%emt 0:04:52]} 15. b4 {[%emt 0:02:10]} Bf8 {[%emt 0:01:44]} 16. a4 {[%emt 0:00:07]} Rb8 {[%emt 0:01:28]} 17. axb5 {[%emt 0:00:36]} axb5 {[%emt 0:00:05]} 18. Bb3 {[%emt 0:04:38]} Bb7 {[%emt 0:07:31]} 19. d4 {[%emt 0:00:32]} Ndxb4 {[%emt 0:01:41]} 20. cxb4 {[%emt 0:00:12]} Nxd4 {[%emt 0:01:03]} 21. Nxd4 {[%emt 0:00:35]} Qxd4 {[%emt 0:00:14]} 22. Nf5 {[%emt 0:01:34]} Qd7 {[%emt 0:02:05]} 23. Qh5 {[%emt 0:01:06]} Bc8 {[%emt 0:01:16]} 24. Nxh6+ {[%emt 0:00:41]} gxh6 {[%emt 0:00:12]} 25. Qg6+ {[%emt 0:00:33]} Kh8 {[%emt 0:01:44]} 26. Bxf7 {[%emt 0:00:18]} Bg7 {[%emt 0:00:50]} 27. Bxh6 {[%emt 0:00:00]} Qg4 {[%emt 0:00:12]} 28. Bxg7# {[%emt 0:00:03]} 1-0

[Event "World Prestigious University 2019"]
[Site "Tianjin"]
[Date "2019.11.26"]
[Round "2.12"]
[White "Balashov, Yuri S"]
[Black "Derakhshani, Dorsa"]
[Result "0-1"]
[WhiteElo "2465"]
[BlackElo "2277"]
[PlyCount "65"]
[EventDate "2019.11.26"]
[EventType "team-tourn"]
[EventCountry "CHN"]
[TimeControl "1500+10"]
[WhiteClock "0:08:14"]
[BlackClock "0:00:16"]

1. e4 {[%emt 0:00:00]} e5 {[%emt 0:00:00]} 2. Nf3 {[%emt 0:00:04]} Nc6 {[%emt 0:00:00]} 3. Bb5 {[%emt 0:00:06]} d6 {[%emt 0:00:09]} 4. d3 {[%emt 0:00:45]} Nge7 {[%emt 0:00:46]} 5. Be3 {[%emt 0:00:42]} a6 {[%emt 0:01:26]} 6. Ba4 {[%emt 0:00:47]} g6 {[%emt 0:00:49]} 7. c3 {[%emt 0:01:24]} Bg7 {[%emt 0:00:28]} 8. Nbd2 {[%emt 0:01:34]} O-O {[%emt 0:00:37]} 9. O-O {[%emt 0:01:52]} h6 {[%emt 0:00:14]} 10. Re1 {[%emt 0:00:28]} f5 {[%emt 0:00:36]} 11. Nb3 {[%emt 0:02:42]} b5 {[%emt 0:00:29]} 12. Bxb5 {[%emt 0:01:29]} axb5 {[%emt 0:00:18]} 13. h3 {[%emt 0:00:18]} g5 {[%emt 0:01:11]} 14. Nh2 {[%emt 0:01:13]} f4 {[%emt 0:01:26]} 15. Bc1 {[%emt 0:00:58]} d5 {[%emt 0:02:07]} 16. Qh5 {[%emt 0:01:01]} dxe4 {[%emt 0:00:36]} 17. dxe4 {[%emt 0:00:46]} Qd6 {[%emt 0:01:13]} 18. Nd2 {[%emt 0:02:21]} Qg6 {[%emt 0:02:53]} 19. Qf3 {[%emt 0:00:57]} h5 {[%emt 0:00:10]} 20. b4 {[%emt 0:02:35]} g4 {[%emt 0:00:38]} 21. hxg4 {[%emt 0:00:14]} hxg4 {[%emt 0:00:03]} 22. Qd3 {[%emt 0:01:46]} f3 {[%emt 0:00:32]} 23. g3 {[%emt 0:00:21]} Qh5 {[%emt 0:00:27]} 24. Qxb5 {[%emt 0:01:02]} Ba6 {[%emt 0:01:01]} 25. Qc5 {[%emt 0:00:21]} Qh3 {[%emt 0:00:05]} 26. Ndxf3 {[%emt 0:02:40]} gxf3 {[%emt 0:00:07]} 27. Nxf3 {[%emt 0:00:34]} Rxf3 {[%emt 0:00:13]} 28. b5 {[%emt 0:00:14]} Bxb5 {[%emt 0:00:59]} 29. Qxb5 {[%emt 0:00:04]} Raf8 {[%emt 0:00:04]} 30. Rf1 {[%emt 0:00:14]} Ng6 {[%emt 0:02:17]} 31. Qd5+ {[%emt 0:00:27]} Kh7 {[%emt 0:00:07]} 32. Qxc6 {[%emt 0:00:05]} Nh4 {[%emt 0:00:05]} 33. gxh4 {[%emt 0:00:15]} 0-1

[Event "World Prestigious University 2019"]
[Site "Tianjin"]
[Date "2019.11.26"]
[Round "2.13"]
[White "Li, Ethan"]
[Black "Fernandez, Daniel Howard"]
[Result "1-0"]
[WhiteElo "2209"]
[BlackElo "2444"]
[PlyCount "59"]
[EventDate "2019.11.26"]
[EventType "team-tourn"]
[EventCountry "CHN"]
[TimeControl "1500+10"]
[WhiteClock "0:00:40"]
[BlackClock "0:11:20"]

1. d4 {[%emt 0:00:00]} Nf6 {[%emt 0:00:00]} 2. c4 {[%emt 0:00:00]} g6 {[%emt 0:00:00]} 3. Nc3 {[%emt 0:00:00]} Bg7 {[%emt 0:00:00]} 4. e4 {[%emt 0:00:00]} O-O {[%emt 0:00:00]} 5. Nf3 {[%emt 0:00:02]} d6 {[%emt 0:00:00]} 6. h3 {[%emt 0:00:01]} e5 {[%emt 0:00:09]} 7. d5 {[%emt 0:00:00]} a5 8. Be3 {[%emt 0:00:06]} Na6 {[%emt 0:00:06]} 9. g4 {[%emt 0:00:52]} Nc5 {[%emt 0:00:52]} 10. Nd2 {[%emt 0:00:00]} h6 11. Be2 {[%emt 0:01:46]} b6 {[%emt 0:00:32]} 12. h4 {[%emt 0:00:00]} Ne8 {[%emt 0:06:28]} 13. h5 {[%emt 0:01:11]} f5 {[%emt 0:03:57]} 14. hxg6 {[%emt 0:05:28]} f4 {[%emt 0:00:12]} 15. Bxc5 {[%emt 0:00:02]} bxc5 {[%emt 0:00:31]} 16. Nf3 {[%emt 0:02:28]} Bxg4 {[%emt 0:02:46]} 17. Nh4 {[%emt 0:00:03]} Bd7 {[%emt 0:01:36]} 18. Bg4 {[%emt 0:00:54]} Nf6 {[%emt 0:01:07]} 19. Bxd7 {[%emt 0:01:07]} Qxd7 {[%emt 0:00:18]} 20. Qe2 {[%emt 0:00:29]} Qg4 {[%emt 0:01:12]} 21. f3 {[%emt 0:01:12]} Qd7 {[%emt 0:01:08]} 22. Nf5 {[%emt 0:00:19]} Rfb8 {[%emt 0:04:26]} 23. O-O-O {[%emt 0:00:29]} a4 {[%emt 0:00:26]} 24. Nxh6+ {[%emt 0:01:16]} Bxh6 {[%emt 0:00:14]} 25. Rxh6 {[%emt 0:00:04]} Kg7 {[%emt 0:00:18]} 26. Rdh1 {[%emt 0:00:05]} Rh8 {[%emt 0:00:13]} 27. Qh2 {[%emt 0:00:13]} Qe8 {[%emt 0:00:56]} 28. Nb5 {[%emt 0:00:15]} Qc8 {[%emt 0:01:20]} 29. Nxc7 {[%emt 0:00:12]} Rb8 {[%emt 0:00:23]} 30. Ne6+ {[%emt 0:00:06]} 1-0

[Event "World Prestigious University 2019"]
[Site "Tianjin"]
[Date "2019.11.26"]
[Round "2.16"]
[White "Daniel, Karim Abbas"]
[Black "Grigory, Oparin"]
[Result "0-1"]
[WhiteElo "2251"]
[BlackElo "2660"]
[PlyCount "42"]
[EventDate "2019.11.26"]
[EventType "team-tourn"]
[EventCountry "CHN"]
[TimeControl "1500+10"]
[WhiteClock "0:16:00"]
[BlackClock "0:02:51"]

1. e4 {[%emt 0:00:00]} c6 {[%emt 0:00:00]} 2. d4 {[%emt 0:00:00]} d5 {[%emt 0:00:00]} 3. Nd2 {[%emt 0:00:00]} dxe4 {[%emt 0:00:00]} 4. Nxe4 {[%emt 0:00:00]} Nf6 {[%emt 0:00:02]} 5. Nxf6+ {[%emt 0:00:12]} exf6 {[%emt 0:00:02]} 6. c3 {[%emt 0:00:22]} Bd6 {[%emt 0:00:03]} 7. Bd3 {[%emt 0:00:08]} O-O {[%emt 0:00:02]} 8. Qc2 {[%emt 0:00:01]} Re8+ {[%emt 0:00:02]} 9. Ne2 {[%emt 0:00:01]} h5 {[%emt 0:00:01]} 10. O-O {[%emt 0:02:39]} h4 {[%emt 0:00:05]} 11. Be3 {[%emt 0:02:31]} Nd7 {[%emt 0:00:18]} 12. Rad1 {[%emt 0:01:35]} Nf8 {[%emt 0:00:02]} 13. c4 {[%emt 0:01:03]} Bc7 {[%emt 0:02:08]} 14. Qd2 {[%emt 0:01:22]} Qd6 {[%emt 0:02:01]} 15. g3 {[%emt 0:01:56]} Bg4 {[%emt 0:02:02]} 16. Rc1 {[%emt 0:01:29]} Ne6 {[%emt 0:01:23]} 17. Nc3 {[%emt 0:05:54]} Rad8 {[%emt 0:03:04]} 18. d5 {[%emt 0:01:28]} Ba5 {[%emt 0:00:28]} 19. c5 {[%emt 0:04:44]} Qxd5 {[%emt 0:00:43]} 20. Nxd5 {[%emt 0:00:06]} Bxd2 {[%emt 0:00:01]} 21. Bxd2 {[%emt 0:00:08]} Rxd5 {[%emt 0:00:03]} 0-1

[Event "World Prestigious University 2019"]
[Site "Tianjin"]
[Date "2019.11.26"]
[Round "2.17"]
[White "Dmitry, Gordievskiy"]
[Black "Mihov, Filip"]
[Result "1-0"]
[WhiteElo "2590"]
[BlackElo "2191"]
[PlyCount "91"]
[EventDate "2019.11.26"]
[EventType "team-tourn"]
[EventCountry "CHN"]
[TimeControl "1500+10"]
[WhiteClock "0:01:05"]
[BlackClock "0:01:34"]

1. Nf3 {[%emt 0:00:00]} d5 {[%emt 0:00:05]} 2. g3 {[%emt 0:00:02]} Nf6 {[%emt 0:00:33]} 3. Bg2 {[%emt 0:00:05]} e6 {[%emt 0:00:21]} 4. O-O {[%emt 0:00:55]} Be7 {[%emt 0:00:03]} 5. c4 {[%emt 0:00:51]} O-O {[%emt 0:01:39]} 6. b3 {[%emt 0:01:28]} b6 {[%emt 0:01:00]} 7. Nc3 {[%emt 0:00:25]} Bb7 {[%emt 0:00:12]} 8. e3 {[%emt 0:00:06]} c5 {[%emt 0:01:14]} 9. Bb2 {[%emt 0:00:03]} dxc4 {[%emt 0:00:21]} 10. bxc4 {[%emt 0:00:02]} Nc6 {[%emt 0:00:01]} 11. Qe2 {[%emt 0:00:20]} Rc8 {[%emt 0:01:29]} 12. Rad1 {[%emt 0:00:59]} Qc7 {[%emt 0:00:03]} 13. Ne1 {[%emt 0:00:16]} Na5 {[%emt 0:00:31]} 14. f4 {[%emt 0:00:17]} Bxg2 {[%emt 0:00:47]} 15. Nxg2 {[%emt 0:00:02]} Qb7 {[%emt 0:01:05]} 16. f5 {[%emt 0:00:51]} e5 {[%emt 0:02:50]} 17. g4 {[%emt 0:00:35]} Ne4 {[%emt 0:00:36]} 18. Nxe4 {[%emt 0:01:11]} Qxe4 {[%emt 0:00:05]} 19. d3 {[%emt 0:00:02]} Qc6 {[%emt 0:00:07]} 20. Bxe5 {[%emt 0:00:03]} f6 {[%emt 0:00:19]} 21. Bc3 {[%emt 0:01:20]} Bd6 {[%emt 0:00:33]} 22. Nf4 {[%emt 0:05:10]} Bxf4 {[%emt 0:00:04]} 23. Rxf4 {[%emt 0:00:02]} Rfe8 {[%emt 0:00:24]} 24. g5 {[%emt 0:00:46]} fxg5 {[%emt 0:01:45]} 25. Rg4 {[%emt 0:00:03]} Rc7 {[%emt 0:00:35]} 26. Rxg5 {[%emt 0:00:40]} Qh6 {[%emt 0:00:06]} 27. Rg3 {[%emt 0:01:01]} Nc6 {[%emt 0:04:07]} 28. Rf1 {[%emt 0:00:04]} Rf7 {[%emt 0:00:39]} 29. Qf3 {[%emt 0:01:32]} Kf8 {[%emt 0:03:32]} 30. f6 {[%emt 0:04:24]} Nd8 {[%emt 0:03:17]} 31. fxg7+ {[%emt 0:00:48]} Kg8 {[%emt 0:00:07]} 32. Qd5 {[%emt 0:00:07]} Qe6 {[%emt 0:00:48]} 33. Rgf3 {[%emt 0:00:31]} Qxd5 {[%emt 0:00:42]} 34. cxd5 {[%emt 0:00:02]} b5 {[%emt 0:00:12]} 35. e4 {[%emt 0:01:22]} b4 {[%emt 0:00:22]} 36. Bf6 {[%emt 0:01:28]} a5 {[%emt 0:00:08]} 37. e5 {[%emt 0:00:07]} Rd7 {[%emt 0:00:04]} 38. Bxd8 {[%emt 0:02:24]} Rxg7+ {[%emt 0:00:01]} 39. Rg3 {[%emt 0:00:12]} Rxd8 {[%emt 0:00:01]} 40. d6 {[%emt 0:00:02]} a4 {[%emt 0:00:19]} 41. e6 {[%emt 0:00:20]} Rxg3+ {[%emt 0:00:05]} 42. hxg3 {[%emt 0:00:01]} Rxd6 {[%emt 0:00:02]} 43. e7 {[%emt 0:00:01]} Re6 44. Rf8+ {[%emt 0:00:01]} Kg7 {[%emt 0:00:10]} 45. e8=Q Rxe8 {[%emt 0:00:01]} 46. Rxe8 {[%emt 0:00:05]} 1-0

[Event "World Prestigious University 2019"]
[Site "Tianjin"]
[Date "2019.11.26"]
[Round "3.1"]
[White "Grigory, Oparin"]
[Black "TannerAustin, McNamara"]
[Result "1-0"]
[WhiteElo "2660"]
[BlackElo "1983"]
[PlyCount "83"]
[EventDate "2019.11.26"]
[EventType "team-tourn"]
[EventCountry "CHN"]
[TimeControl "1500+10"]
[WhiteClock "0:02:37"]
[BlackClock "0:24:08"]

1. c4 {[%emt 0:00:00]} Nf6 {[%emt 0:00:00]} 2. Nf3 {[%emt 0:00:00]} c6 {[%emt 0:00:00]} 3. g3 {[%emt 0:00:04]} d5 {[%emt 0:00:00]} 4. Bg2 {[%emt 0:00:02]} g6 {[%emt 0:00:01]} 5. b3 {[%emt 0:00:02]} Bg7 {[%emt 0:00:01]} 6. Bb2 {[%emt 0:00:01]} O-O {[%emt 0:00:03]} 7. O-O {[%emt 0:00:02]} Bf5 {[%emt 0:02:50]} 8. d3 {[%emt 0:00:05]} a5 {[%emt 0:00:42]} 9. Nc3 {[%emt 0:00:12]} Nfd7 {[%emt 0:03:52]} 10. cxd5 {[%emt 0:01:08]} cxd5 {[%emt 0:00:07]} 11. Qd2 {[%emt 0:00:02]} d4 {[%emt 0:01:28]} 12. Nb5 {[%emt 0:00:02]} e5 {[%emt 0:00:02]} 13. Nd6 {[%emt 0:00:10]} Be6 {[%emt 0:00:08]} 14. Ng5 {[%emt 0:00:41]} Qb6 {[%emt 0:01:21]} 15. Nxe6 {[%emt 0:00:15]} fxe6 {[%emt 0:00:02]} 16. Ba3 {[%emt 0:00:13]} Nc5 {[%emt 0:01:04]} 17. Rac1 {[%emt 0:01:27]} Nba6 {[%emt 0:00:22]} 18. Nc4 {[%emt 0:00:09]} Qd8 {[%emt 0:02:21]} 19. Qxa5 {[%emt 0:00:53]} Qxa5 {[%emt 0:01:36]} 20. Nxa5 {[%emt 0:00:03]} e4 {[%emt 0:03:54]} 21. Bxc5 {[%emt 0:01:07]} Nxc5 {[%emt 0:00:03]} 22. Rxc5 {[%emt 0:00:02]} b6 {[%emt 0:00:01]} 23. Rc6 {[%emt 0:00:01]} Rxa5 {[%emt 0:00:11]} 24. Bxe4 {[%emt 0:00:13]} Rxa2 {[%emt 0:00:27]} 25. Bf3 {[%emt 0:00:04]} Kf7 {[%emt 0:01:33]} 26. Rxb6 {[%emt 0:00:02]} Rc8 {[%emt 0:00:31]} 27. b4 {[%emt 0:00:02]} h5 {[%emt 0:00:57]} 28. b5 {[%emt 0:00:03]} Rc5 {[%emt 0:00:43]} 29. Rb7+ {[%emt 0:00:10]} Kf6 {[%emt 0:00:20]} 30. b6 {[%emt 0:00:02]} Rb2 {[%emt 0:00:10]} 31. Rb8 {[%emt 0:00:03]} Rcb5 {[%emt 0:00:30]} 32. b7 {[%emt 0:00:01]} Ke7 {[%emt 0:00:19]} 33. Rc1 {[%emt 0:00:07]} Be5 {[%emt 0:00:18]} 34. Rg8 {[%emt 0:00:03]} Rb1 {[%emt 0:02:08]} 35. Rxb1 {[%emt 0:00:01]} Rxb1+ {[%emt 0:00:01]} 36. Kg2 {[%emt 0:00:02]} Kf7 {[%emt 0:00:01]} 37. Rc8 {[%emt 0:00:02]} Rb6 {[%emt 0:00:15]} 38. h4 {[%emt 0:00:01]} Ke7 {[%emt 0:00:13]} 39. Be4 {[%emt 0:00:02]} Kf7 {[%emt 0:00:07]} 40. f4 {[%emt 0:00:02]} Bd6 {[%emt 0:00:17]} 41. Rd8 {[%emt 0:00:01]} Bc7 {[%emt 0:00:14]} 42. Rd7+ {[%emt 0:00:02]} 1-0

[Event "World Prestigious University 2019"]
[Site "Tianjin"]
[Date "2019.11.26"]
[Round "3.2"]
[White "Lei, Sean"]
[Black "Dmitry, Gordievskiy"]
[Result "0-1"]
[WhiteElo "1895"]
[BlackElo "2590"]
[Annotator "RC"]
[PlyCount "62"]
[EventDate "2019.11.26"]
[EventType "team-tourn"]
[EventCountry "CHN"]
[TimeControl "1500+10"]
[WhiteClock "0:17:38"]
[BlackClock "0:14:40"]

1. d4 {[%emt 0:00:00]} Nf6 {[%emt 0:00:00]} 2. Nf3 {[%emt 0:00:00]} b6 {[%emt 0:00:12]} 3. Nbd2 {[%emt 0:00:07]} Bb7 {[%emt 0:00:05]} 4. b3 {[%emt 0:00:03]} g6 {[%emt 0:00:45]} 5. Bb2 {[%emt 0:00:02]} Bg7 {[%emt 0:00:02]} 6. e3 {[%emt 0:00:02]} O-O {[%emt 0:00:13]} 7. Be2 {[%emt 0:00:03]} c5 {[%emt 0:00:23]} 8. dxc5 {[%emt 0:00:21]} bxc5 {[%emt 0:00:03]} 9. c4 {[%emt 0:00:05]} a5 {[%emt 0:00:15]} 10. O-O {[%emt 0:00:17]} a4 {[%emt 0:00:07]} 11. Qc2 {[%emt 0:00:37]} Nc6 {[%emt 0:00:22]} 12. Ne4 {[%emt 0:03:20]} Nxe4 {[%emt 0:05:38]} 13. Bxg7 {[%emt 0:00:09]} Nb4 {[%emt 0:00:06]} 14. Qb2 {[%emt 0:03:13]} a3 {[%emt 0:00:03]} 15. Qe5 {[%emt 0:00:54]} d6 {[%emt 0:00:17]} 16. Qf4 {[%emt 0:00:28]} Kxg7 {[%emt 0:00:07]} 17. h4 {[%emt 0:00:40]} e5 {[%emt 0:00:12]} 18. Qh2 {[%emt 0:00:44]} Nc3 {[%emt 0:00:11]} 19. Bd1 {[%emt 0:00:14]} Qf6 {[%emt 0:00:42]} 20. Nd2 {[%emt 0:00:35]} Ncxa2 {[%emt 0:00:30]} 21. e4 {[%emt 0:01:24]} Qf4 {[%emt 0:00:26]} 22. Qxf4 {[%emt 0:00:02]} exf4 {[%emt 0:00:01]} 23. f3 {[%emt 0:00:17]} Nc3 {[%emt 0:00:13]} 24. Nb1 {[%emt 0:00:47]} Nxb1 {[%emt 0:00:36]} 25. Rxb1 {[%emt 0:00:05]} f5 {[%emt 0:00:02]} 26. exf5 {[%emt 0:00:05]} Rxf5 {[%emt 0:00:01]} 27. Rf2 {[%emt 0:00:12]} Re5 {[%emt 0:00:03]} 28. Rd2 {[%emt 0:00:13]} d5 {[%emt 0:00:15]} 29. cxd5 {[%emt 0:00:16]} Bxd5 {[%emt 0:00:07]} 30. Kf2 {[%emt 0:00:05]} h6 {[%emt 0:00:29]} 31. Rc1 {[%emt 0:00:10]} a2 {[%emt 0:00:06]} 0-1

[Event "World Prestigious University 2019"]
[Site "Tianjin"]
[Date "2019.11.26"]
[Round "3.3"]
[White "Wang, Nancy"]
[Black "Zhou, Qiyu"]
[Result "1/2-1/2"]
[WhiteElo "1823"]
[BlackElo "2216"]
[PlyCount "56"]
[EventDate "2019.11.26"]
[EventType "team-tourn"]
[EventCountry "CHN"]
[TimeControl "1500+10"]
[WhiteClock "0:04:00"]
[BlackClock "0:03:02"]

1. e4 {[%emt 0:00:00]} e5 {[%emt 0:00:00]} 2. Nc3 {[%emt 0:00:00]} Nc6 {[%emt 0:00:00]} 3. g3 {[%emt 0:00:00]} Nf6 {[%emt 0:00:20]} 4. Bg2 {[%emt 0:00:02]} Bc5 {[%emt 0:00:30]} 5. Nge2 {[%emt 0:00:06]} O-O {[%emt 0:00:15]} 6. h3 {[%emt 0:00:32]} a6 {[%emt 0:00:06]} 7. O-O {[%emt 0:00:10]} d6 {[%emt 0:01:03]} 8. d3 {[%emt 0:00:08]} h6 {[%emt 0:00:09]} 9. Kh2 {[%emt 0:00:36]} Bd7 {[%emt 0:07:07]} 10. Nd5 {[%emt 0:02:30]} Nxd5 {[%emt 0:01:39]} 11. exd5 {[%emt 0:00:03]} Ne7 {[%emt 0:01:01]} 12. d4 {[%emt 0:01:11]} exd4 {[%emt 0:00:05]} 13. Nxd4 {[%emt 0:00:02]} Nf5 {[%emt 0:00:07]} 14. Be3 {[%emt 0:07:23]} Bxd4 {[%emt 0:02:53]} 15. Bxd4 {[%emt 0:00:04]} Re8 {[%emt 0:00:08]} 16. Bc3 {[%emt 0:02:12]} Qg5 {[%emt 0:00:25]} 17. h4 {[%emt 0:02:38]} Qg6 {[%emt 0:00:49]} 18. Qf3 {[%emt 0:01:52]} h5 {[%emt 0:00:26]} 19. Bh3 {[%emt 0:00:19]} Re7 {[%emt 0:00:06]} 20. Rfe1 {[%emt 0:00:19]} Rae8 {[%emt 0:00:01]} 21. Qd3 {[%emt 0:00:36]} Kf8 {[%emt 0:01:28]} 22. b3 {[%emt 0:00:30]} Qh7 {[%emt 0:03:21]} 23. Bd2 {[%emt 0:02:06]} Qg6 {[%emt 0:01:57]} 24. Rad1 {[%emt 0:01:55]} f6 {[%emt 0:01:27]} 25. Bc3 {[%emt 0:00:42]} Kf7 {[%emt 0:00:11]} 26. Bd2 {[%emt 0:00:38]} Kf8 {[%emt 0:00:04]} 27. Bc3 {[%emt 0:00:02]} Kf7 {[%emt 0:00:01]} 28. Bd2 {[%emt 0:00:02]} Kf8 {[%emt 0:00:01]} 1/2-1/2

[Event "World Prestigious University 2019"]
[Site "Tianjin"]
[Date "2019.11.26"]
[Round "3.5"]
[White "Mihov, Filip"]
[Black "Behar, Joshua"]
[Result "0-1"]
[WhiteElo "2191"]
[BlackElo "1974"]
[PlyCount "76"]
[EventDate "2019.11.26"]
[EventType "team-tourn"]
[EventCountry "CHN"]
[TimeControl "1500+10"]
[WhiteClock "0:03:40"]
[BlackClock "0:00:27"]

1. d4 {[%emt 0:00:00]} Nf6 {[%emt 0:00:00]} 2. c4 {[%emt 0:00:00]} e6 {[%emt 0:00:00]} 3. Nc3 {[%emt 0:00:00]} Bb4 {[%emt 0:00:00]} 4. e3 {[%emt 0:00:01]} d5 {[%emt 0:00:20]} 5. a3 {[%emt 0:00:20]} Bxc3+ {[%emt 0:00:04]} 6. bxc3 {[%emt 0:00:01]} dxc4 {[%emt 0:00:02]} 7. Bxc4 {[%emt 0:00:08]} c5 {[%emt 0:00:02]} 8. Nf3 {[%emt 0:00:10]} Qc7 {[%emt 0:00:02]} 9. Be2 {[%emt 0:00:08]} O-O {[%emt 0:00:17]} 10. O-O {[%emt 0:00:02]} b6 {[%emt 0:00:11]} 11. a4 {[%emt 0:01:50]} Bb7 {[%emt 0:00:16]} 12. Bb2 {[%emt 0:02:06]} Nbd7 {[%emt 0:01:02]} 13. c4 {[%emt 0:01:52]} Rad8 {[%emt 0:00:58]} 14. Qb3 {[%emt 0:00:10]} Ng4 {[%emt 0:08:51]} 15. g3 {[%emt 0:06:47]} Ngf6 {[%emt 0:00:00]} 16. Rfd1 {[%emt 0:01:24]} cxd4 {[%emt 0:00:00]} 17. exd4 {[%emt 0:00:14]} Ne4 {[%emt 0:00:00]} 18. Qe3 {[%emt 0:02:12]} Nd6 {[%emt 0:00:00]} 19. Qf4 {[%emt 0:00:55]} f6 {[%emt 0:00:00]} 20. Ba3 {[%emt 0:01:07]} e5 {[%emt 0:00:00]} 21. dxe5 {[%emt 0:00:14]} fxe5 {[%emt 0:00:00]} 22. Qg4 {[%emt 0:00:02]} Nc5 {[%emt 0:00:00]} 23. Nxe5 {[%emt 0:02:26]} Nde4 {[%emt 0:00:21]} 24. f4 {[%emt 0:00:02]} Rde8 {[%emt 0:07:18]} 25. Bb2 {[%emt 0:00:22]} Nf6 {[%emt 0:00:38]} 26. Qh3 {[%emt 0:04:16]} Nb3 {[%emt 0:00:18]} 27. Qf1 {[%emt 0:01:15]} Ne4 {[%emt 0:00:36]} 28. Bf3 {[%emt 0:01:18]} Ned2 {[%emt 0:01:43]} 29. Rxd2 {[%emt 0:00:12]} Nxd2 {[%emt 0:00:03]} 30. Qd3 {[%emt 0:00:11]} Nxf3+ {[%emt 0:01:21]} 31. Nxf3 {[%emt 0:00:01]} Bxf3 {[%emt 0:00:33]} 32. Qxf3 {[%emt 0:00:01]} Qxc4 {[%emt 0:00:05]} 33. Rc1 {[%emt 0:00:23]} Qe6 {[%emt 0:00:19]} 34. Rc7 {[%emt 0:00:13]} Qe1+ {[%emt 0:00:42]} 35. Qf1 {[%emt 0:00:01]} Rf7 {[%emt 0:00:44]} 36. Rc1 {[%emt 0:00:23]} Qxf1+ {[%emt 0:00:09]} 37. Kxf1 {[%emt 0:00:03]} h6 {[%emt 0:00:20]} 38. Be5 {[%emt 0:00:03]} Rxe5 {[%emt 0:00:25]} 0-1